Cogmind - Beta 12 @@@ ROGUE MODE // 2023.06.09 @ 10:55:44 Player: zeramoth Result: Self-destructed Performance ------------- Evolutions (3) 1500 Regions Visited (6) 1200 Robots Destroyed (16) 80 Value Destroyed (327) 327 Prototype IDs (0) 0 Alien Tech Used (0) 0 Bonus (500) 500 TOTAL SCORE: 3607 Bonus ------- Entered DSFs 500 Cogmind --------- Core Integrity 405/700 Matter 264/300 Energy 100/100 System Corruption 0% Temperature Cool (0) Movement Core (100) Ox1 Location -7/DSF Parts ------- > --- POWER (1) -------- (None) > --- PROPULSION (4) --- (None) > --- UTILITY (6) ------ Small Storage Unit Authchip [R/Combat] > --- WEAPON (2) ------- (None) > --- INVENTORY (8) ---- Light Ion Engine Advanced Weight Redist. System Signal Interpreter ECM Suite Hardlight Generator Spread Laser Rocket Launcher Peak State ------------ > --- POWER ------------ Light Nuclear Core > --- PROPULSION ------- Cesium-ion Thruster Cesium-ion Thruster Cesium-ion Thruster Cesium-ion Thruster > --- UTILITY ---------- Heat Sink Small Storage Unit Sensor Array Transmission Jammer Hacking Suite Authchip [R/Combat] > --- WEAPON ----------- Chainsword > --- INVENTORY -------- Light Ion Engine Advanced Weight Redist. System Signal Interpreter ECM Suite Hardlight Generator Spread Laser Rocket Launcher [Rating: 34] Favorites ----------- Power Light Ion Engine Engine Light Ion Engine Power Core Light Nuclear Core Propulsion Cesium-ion Thruster Leg Aluminum Leg Wheel Wheel Flight Unit Cesium-ion Thruster Utility Small Storage Unit Device Heat Sink Storage Small Storage Unit Hackware Hacking Suite Weapon Spread Laser Energy Gun Spread Laser Ballistic Gun Light Assault Rifle Launcher Rocket Launcher Impact Weapon Heavy Hammer Slashing Weapon Chainsword Build | -11 -10 -9 -9 -8 -7 -7 ------- Run | Jun Mat Mat Min Mat Fac DSF Slots Evolved 6 | . . 2 . 2 2 . Power . | . . . . . . . Propulsion 2 | . . 1 . 1 . . Utility 4 | . . 1 . 1 2 . Weapon . | . . . . . . . Parts Attached 23 | 1 6 7 1 4 3 1 Power 1 | . . . . 1 . . Engine . | . . . . . . . Core 1 | . . . . 1 . . Reactor . | . . . . . . . Propulsion 7 | . 2 4 . 1 . . Treads . | . . . . . . . Leg . | . . . . . . . Wheel 3 | . 2 1 . . . . Hover . | . . . . . . . Flight 4 | . . 3 . 1 . . Utility 9 | 1 2 2 . 1 2 1 Device 6 | 1 1 2 . . 2 . Storage 1 | . 1 . . . . . Processor . | . . . . . . . Hackware 2 | . . . . 1 . 1 Protection . | . . . . . . . Artifact . | . . . . . . . Weapon 6 | . 2 1 1 1 1 . Energy Gun 2 | . 2 . . . . . Energy Cannon . | . . . . . . . Ballistic Gun . | . . . . . . . Ballistic Cannon . | . . . . . . . Launcher 1 | . . . 1 . . . Special Weapon . | . . . . . . . Impact Weapon 1 | . . 1 . . . . Slashing Weapon 2 | . . . . 1 1 . Piercing Weapon . | . . . . . . . Special Melee Weapon . | . . . . . . . Unidentified Prototypes . | . . . . . . . Parts Lost 10 | . . . . . . 10 Power 1 | . . . . . . 1 Propulsion 4 | . . . . . . 4 Utility 4 | . . . . . . 4 Weapon 1 | . . . . . . 1 Highest Loss Streak 10 | . . . . . . 10 To Critical Strikes . | . . . . . . . Average Slot Usage (%) 90 | . 99 87 88 84 84 65 Engine 10 | . 14 11 11 7 . . Leg 9 | . 25 . . . . . Wheel 4 | . 2 11 . . . . Flight 15 | . . 17 33 36 30 21 Device 15 | . 12 15 22 18 23 15 Storage 14 | . 15 16 11 9 7 7 Hackware 1 | . . . . 3 7 10 Energy Gun 13 | . 27 9 . . . . Impact Weapon 4 | . . 6 11 9 1 . Naked Turns . | . . . . . . . Heaviest Build 25 | 11 24 25 13 15 16 16 Greatest Support 36 | 20 26 36 15 20 20 20 Greatest Overweight (x) 4 | . 1 4 . . . 1 Average Overweight (x) . | . . . . . . . Largest Inventory Capacity 10 | 8 10 10 8 8 8 8 Average Capacity 8 | 8 8 9 8 8 8 8 Most Carried 10 | 6 10 10 8 8 8 7 Average Carried 7 | 6 7 8 7 7 6 7 Final Capacity 10 | 8 10 8 8 8 8 8 Final Carried 10 | 6 10 8 8 8 7 7 Class Distribution -------------------- 56% | Mutant 43% | Sprinter Dominant Class ---------------- Mutant | -10/Materials Sprinter | -9/Materials Sprinter | -9/Mines Sprinter | -8/Materials Sprinter | -7/Factory Mutant | -7/DSF Resources | -11 -10 -9 -9 -8 -7 -7 ----------- Run | Jun Mat Mat Min Mat Fac DSF Matter Collected 347 | 203 30 110 . . . 4 Remotely . | . . . . . . . Salvage Created 446 | 125 69 252 . . . . Parts 28 | 3 9 16 . . . . Haulers Intercepted . | . . . . . . . Recyclers Shooed . | . . . . . . . Parts Field Recycled . | . . . . . . . Retrieved Matter . | . . . . . . . Parts Self-Destructed . | . . . . . . . Prevented . | . . . . . . . Kills | -11 -10 -9 -9 -8 -7 -7 ------- Run | Jun Mat Mat Min Mat Fac DSF Combat Hostiles Destroyed 13 | . 5 8 . . . . Melee 5 | . . 5 . . . . Guns 5 | . 5 . . . . . Classes Destroyed 6 | 2 2 2 . . . . Builder 1 | . . 1 . . . . Tunneler 1 | 1 . . . . . . Recycler 1 | 1 . . . . . . Swarmer 7 | . 3 4 . . . . Grunt 4 | . 2 2 . . . . Sentry 2 | . . 2 . . . . Best Kill Streak 6 | 2 5 6 . . . . Combat Bots Only 6 | . 5 6 . . . . Max Kills in Single Turn 1 | 1 1 1 . . . . Gunslinging . | . . . . . . . Exploded . | . . . . . . . Melee 1 | . . 1 . . . . Uniques/NPCs Destroyed . | . . . . . . . Combat | -11 -10 -9 -9 -8 -7 -7 -------- Run | Jun Mat Mat Min Mat Fac DSF Damage Taken 867 | . 208 106 . . . 553 Core 399 | . 68 36 . . . 295 Absorbed by Shields . | . . . . . . . Core Remaining (%) 90 | 100 72 . 91 100 . . Volleys Fired 17 | 3 13 1 . . . . Largest 2 | 2 2 2 . . . . Hottest 130 | 60 130 130 . . . . Shots Fired 29 | 6 21 2 . . . . Gun 29 | 6 21 2 . . . . Cannon . | . . . . . . . Launcher . | . . . . . . . Special . | . . . . . . . Kinetic 3 | 3 . . . . . . Thermal 26 | 3 21 2 . . . . Explosive . | . . . . . . . Electromagnetic . | . . . . . . . Robot Hit Streak 8 | 4 8 5 . . . . Robot Miss Streak 5 | . 5 1 . . . . Penetration Max . | . . . . . . . Secondary Targets 1 | . 1 . . . . . Max Gunslinging Chain 1 | . 1 . . . . . Shots Hit Robots 45 | 4 20 15 . . . 6 Core Hits 29 | 3 20 6 . . . . Critical Kills . | . . . . . . . Critical Parts Destroyed 3 | . . 3 . . . . Critical Strikes 3 | . . 3 . . . . Smash 3 | . . 3 . . . . Melee Attacks 24 | . . 16 . . 1 7 Impact 16 | . . 16 . . . . Slashing 8 | . . . . . 1 7 Piercing . | . . . . . . . Sneak Attacks 1 | . . 1 . . . . Combat Hostiles . | . . . . . . . Follow-up Attacks . | . . . . . . . Damage Inflicted 944 | 42 200 582 . . . 120 Guns 286 | 42 200 44 . . . . Cannons . | . . . . . . . Explosions . | . . . . . . . Melee 658 | . . 538 . . . 120 Ramming . | . . . . . . . Kinetic 9 | 9 . . . . . . Thermal 277 | 33 200 44 . . . . Explosive . | . . . . . . . Electromagnetic . | . . . . . . . Impact 538 | . . 538 . . . . Slashing 120 | . . . . . . 120 Piercing . | . . . . . . . Highest Corruption . | . . . . . . . Average Corruption . | . . . . . . . Corruption Purged . | . . . . . . . Corruption Blocked . | . . . . . . . Overload Shots . | . . . . . . . Overflow Damage 245 | . . 245 . . . . Projectiles . | . . . . . . . Explosions . | . . . . . . . Melee 245 | . . 245 . . . . Knockbacks 2 | . . 2 . . . . Impact 2 | . . 2 . . . . Kinetic . | . . . . . . . Secondary . | . . . . . . . Self-Inflicted Damage . | . . . . . . . Shots . | . . . . . . . Rammed . | . . . . . . . Targets Rammed . | . . . . . . . Kicked . | . . . . . . . Crushed . | . . . . . . . Highest Temperature 424 | 40 424 30 . . . . Average Temperature 208 | 19 238 16 . . . . Received Heat Transfer 162 | . 105 57 . . . . Effects 4 | . 4 . . . . . Shutdowns 1 | . 1 . . . . . Interference 3 | . 3 . . . . . Siege Activations . | . . . . . . . Robots Corrupted . | . . . . . . . Combat Hostiles . | . . . . . . . Parts Fried 5 | . . 5 . . . . Impact Corruptions 9 | . . 9 . . . . Robots Melted . | . . . . . . . Combat Hostiles . | . . . . . . . Parts Melted . | . . . . . . . Heat Transferred 380 | 75 255 50 . . . . Parts Sabotaged . | . . . . . . . Parts Stolen . | . . . . . . . Parts Stripped . | . . . . . . . Power Chain Reactions . | . . . . . . . Missiles Intercepted . | . . . . . . . Alert | -11 -10 -9 -9 -8 -7 -7 ------- Run | Jun Mat Mat Min Mat Fac DSF Peak Influence 372 | 10 171 372 144 100 103 82 Initial 144 | . 6 72 144 55 45 82 Average 102 | 7 92 128 144 78 65 45 Maximum Alert Level 1 | . . 1 . . . . Low Security (%) 93 | 100 100 80 100 100 100 100 Level 1 6 | . . 19 . . . . Level 2 . | . . . . . . . Level 3 . | . . . . . . . Level 4 . | . . . . . . . Level 5 . | . . . . . . . High Security . | . . . . . . . Max Security . | . . . . . . . Squads Dispatched 4 | . . 1 . 1 . 2 Investigation 2 | . . 1 . 1 . . Extermination . | . . . . . . . Reinforcement 2 | . . . . . . 2 Assault . | . . . . . . . Garrison . | . . . . . . . Intercept . | . . . . . . . Searches Triggered . | . . . . . . . Construction Impeded . | . . . . . . . Haulers Reinforced . | . . . . . . . Active Scanning Responses . | . . . . . . . Cargo Convoy Interrupts . | . . . . . . . Stealth | -11 -10 -9 -9 -8 -7 -7 --------- Run | Jun Mat Mat Min Mat Fac DSF Distress Signals 1 | . 1 . . . . . Communications Jammed . | . . . . . . . Distress Signals . | . . . . . . . Times Spotted 33 | . 9 15 . 4 3 2 Peak Tracking Total 7 | . 4 5 . 7 3 2 Tactical Retreats 4 | . 1 1 . . 2 . Traps | -11 -10 -9 -9 -8 -7 -7 ------- Run | Jun Mat Mat Min Mat Fac DSF Traps Triggered . | . . . . . . . Indirectly . | . . . . . . . Trap Hack Attempts . | . . . . . . . Triggered . | . . . . . . . Disarmed . | . . . . . . . Reprogrammed . | . . . . . . . Reused . | . . . . . . . Traps Extracted . | . . . . . . . Installed . | . . . . . . . Triggered . | . . . . . . . Machines | -11 -10 -9 -9 -8 -7 -7 ---------- Run | Jun Mat Mat Min Mat Fac DSF Machines Disabled . | . . . . . . . Max in Single Turn . | . . . . . . . Machines Repaired . | . . . . . . . Machines Sabotaged . | . . . . . . . Overloaded Fab Kills . | . . . . . . . Hacking | -11 -10 -9 -9 -8 -7 -7 --------- Run | Jun Mat Mat Min Mat Fac DSF Machines Accessed 7 | . 1 1 . 3 2 . Terminals 7 | . 1 1 . 3 2 . Fabricators . | . . . . . . . Repair Stations . | . . . . . . . Recycling Units . | . . . . . . . Scanalyzers . | . . . . . . . Garrison Access . | . . . . . . . Total Hacks 13 | . 1 1 . 9 2 . Successful 5 | . . . . 3 2 . Failed 8 | . 1 1 . 6 . . Catastrophic . | . . . . . . . Database Lockouts . | . . . . . . . Manual 10 | . 1 1 . 8 . . Terminals 13 | . 1 1 . 9 2 . Fabricators . | . . . . . . . Repair Stations . | . . . . . . . Recycling Units . | . . . . . . . Scanalyzers . | . . . . . . . Garrison Access . | . . . . . . . Terminal Hacks 5 | . . . . 3 2 . Open DSF 1 | . . . . . 1 . Terminal Index 1 | . . . . 1 . . Recall Investigation 1 | . . . . 1 . . Zone Layout 2 | . . . . 1 1 . Fabricator Hacks . | . . . . . . . Repair Station Hacks . | . . . . . . . Recycling Unit Hacks . | . . . . . . . Scanalyzer . | . . . . . . . Garrison Access Hacks . | . . . . . . . Unauthorized Hacks . | . . . . . . . Terminals . | . . . . . . . Fabricators . | . . . . . . . Repair Stations . | . . . . . . . Recycling Units . | . . . . . . . Scanalyzers . | . . . . . . . Garrison Access . | . . . . . . . Data Cores Recovered . | . . . . . . . Used . | . . . . . . . Hacking Detections 5 | . 1 . . 3 1 . Full Trace Events 1 | . . . . 1 . . Feedback Events . | . . . . . . . Feedback Blocked . | . . . . . . . Robot Schematics Acquired . | . . . . . . . Robots Built . | . . . . . . . Authchips . | . . . . . . . Time . | . . . . . . . Total Robot Build Rating . | . . . . . . . Part Schematics Acquired . | . . . . . . . Parts Built . | . . . . . . . Authchips . | . . . . . . . Time . | . . . . . . . Total Part Build Rating . | . . . . . . . Parts Repaired . | . . . . . . . Time . | . . . . . . . Parts Recycled . | . . . . . . . Recycled Matter . | . . . . . . . Retrieved Matter . | . . . . . . . Retrieved Components . | . . . . . . . Parts Scanalyzed . | . . . . . . . Part Schematics Acquired . | . . . . . . . Parts Damaged . | . . . . . . . Bothacking | -11 -10 -9 -9 -8 -7 -7 ------------ Run | Jun Mat Mat Min Mat Fac DSF Used RIF Installer . | . . . . . . . Robots Hacked . | . . . . . . . Non-combat . | . . . . . . . Combat . | . . . . . . . Robot Hacks Applied . | . . . . . . . Relay Couplers Released . | . . . . . . . Fabnet Peak Effective % . | . . . . . . . Robots Rewired . | . . . . . . . Allies Hacked . | . . . . . . . Hacks Repelled . | . . . . . . . Allies | -11 -10 -9 -9 -8 -7 -7 -------- Run | Jun Mat Mat Min Mat Fac DSF Total Allies . | . . . . . . . Largest Group . | . . . . . . . Highest-Rated Group . | . . . . . . . Highest-Rated Ally . | . . . . . . . Total Orders . | . . . . . . . Ally Attacks . | . . . . . . . Total Damage . | . . . . . . . Kills . | . . . . . . . Allies Corrupted . | . . . . . . . Allies Melted . | . . . . . . . Intel | -11 -10 -9 -9 -8 -7 -7 ------- Run | Jun Mat Mat Min Mat Fac DSF Robot Analysis Total . | . . . . . . . Derelict Logs Recovered 1 | . . . 1 . . . Drone Launches . | . . . . . . . Drone Recoveries . | . . . . . . . Exploration | -11 -10 -9 -9 -8 -7 -7 ------------- Run | Jun Mat Mat Min Mat Fac DSF Turns Passed 997 | 31 355 315 115 65 67 49 Spaces Moved 1389 | 18 248 311 356 189 199 68 Core 2 | . . . . . . 2 Treads . | . . . . . . . Legs 234 | 18 216 . . . . . Wheels 166 | . 32 134 . . . . Hover . | . . . . . . . Flight 987 | . . 177 356 189 199 66 Fastest Speed 26 | 120 90 29 29 26 26 26 Average Speed 51 | 120 116 58 29 26 26 33 Slowest Speed 355 | 120 190 355 29 26 26 115 Overloaded Moves . | . . . . . . . Propulsion Burnouts . | . . . . . . . Robots Hopped . | . . . . . . . Cave-ins Triggered . | . . . . . . . Exploration Rate (%) 37 | 2 37 45 85 22 5 69 Regions Visited 6 Branch Regions 1 Pre-discovered Areas . | . . . . . . . Known Exits Taken 1 | . . . . . 1 . Unknown Exits Taken 5 | 1 1 1 1 1 . . Scrap Searched 2 | . . . 2 . . . Spaces Dug 1 | . . . . . 1 . Terrain Destroyed 1 | . . . . . 1 . Melee 1 | . . . . . 1 . Projectile . | . . . . . . . AOE . | . . . . . . . Terrain Rammed . | . . . . . . . Walls Destroyed . | . . . . . . . Machines Disabled . | . . . . . . . Actions | -11 -10 -9 -9 -8 -7 -7 --------- Run | Jun Mat Mat Min Mat Fac DSF Total 1597 | 21 293 418 367 203 213 82 Wait 107 | . 12 66 9 10 4 6 Move 1383 | 17 247 310 355 188 198 68 Hop . | . . . . . . . Pick Up 12 | . 6 4 . . 2 . Fast Attach 16 | 1 4 5 1 2 2 1 Attach 4 | . . 2 . 1 1 . Detach 10 | . 3 4 1 1 1 . Swap 3 | . 2 . . 1 . . Drop 21 | . 6 10 1 . 4 . Fire 17 | 3 13 1 . . . . Melee 24 | . . 16 . . 1 7 Ram . | . . . . . . . Kick . | . . . . . . . Crush . | . . . . . . . Escape Stasis . | . . . . . . . Rewire . | . . . . . . . Trap . | . . . . . . . Miscellaneous . | . . . . . . . Route ------- -11/Junkyard -10/Materials (discovered 2 exits: *Mat / [*Min]) -9/Materials -9/Mines -8/Materials -7/Factory -7/DSF History --------- Turn | Location | Event 1 | -11/Junkyard | Discovered new exit (range 3) 32 | -11/Junkyard | Entered Materials 248 | -10/Materials | Discovered new exit (range 14) 303 | -10/Materials | Build established: Mutant 381 | -10/Materials | Discovered new exit (range 7) 387 | -10/Materials | Entered another Materials area 387 | -9/Materials | Evolved 2 slots: Propulsion x1, Utility x1 698 | -9/Materials | Discovered new exit (range 16) 702 | -9/Materials | Entered Mines 742 | -9/Mines | Received a Rocket Launcher from a helpful Derelict 799 | -9/Mines | Discovered new exit (range 9) 810 | -9/Mines | Learned location of 1 exit from Lower Caves 817 | -9/Mines | Entered Materials 817 | -8/Materials | Evolved 2 slots: Propulsion x1, Utility x1 838 | -8/Materials | Build established: Sprinter 860 | -8/Materials | Discovered new exit (range 14) 882 | -8/Materials | Entered Factory 882 | -7/Factory | Evolved 2 slots: Utility x2 942 | -7/Factory | Identified exit to DSF 949 | -7/Factory | Entered DSF 969 | -7/DSF | Additional patrols routed to DSF 998 | -7/DSF | Self-destructed Last Messages --------------- 00982_ Knocked back. 00988_ Hacking Suite destroyed. 00988_ Critical hit (Blast). 00988_ Knocked back. 00989_ A-02 Transporter delivers Lgt. Fission Core. 00990_ Cesium-ion Thruster destroyed. 00990_ Chainsword destroyed. 00990_ Critical hit (Blast). 00990_ Knocked back. 00991_ A-02 Transporter delivers Lgt. Fission Core. 00993_ Knocked back. 00994_ A-02 Transporter delivers Lgt. Fission Core. 00994_ Slug penetrates A-02 Transporter. 00995_ A-02 Transporter delivers Lgt. Fission Core. 00996_ Penetrated by Slug. 00996_ Transmission Jammer destroyed. 00996_ Knocked back. 00997_ Acquired 4 matter. 00997_ Slug penetrates Wall. 00997_ A-02 Transporter delivers Lgt. Fission Core. Map ----- +----------------------------------------------------+ | | | ??????????????????????????????????????????????? | | ??????????????????????????????????????????????? | | ??????????????????????????????????????????????? | | ??????????????????????????????????????????????? | | ??????????????????????????????????????""??????? | | ??????????????????????????????????????"#??????? | | ????????????????????#########???????##"####???? | | ????????????????????# #########"""""#???? | | ????????????????????# # # ##"""""#???? | | ????????????????????# ""##"?? | | ????????????????????# """""?? | | ????????????????????### ###!!!#!!## ""##??? | | ????????????????????### ###!!!#!!### ###???? | | ????????????????????#// !!########## ##????? | | ????????????????????#// !!#??????#!! !#????? | | ????????????????????#// !!#??????#!! !#????? | | ???????????????????#### ###??????### ##????? | | ???????????????????# !! !##?????#!! !#????? | | ????????????????????#!! %!!;#?????#!! !#????? | | ????????????????????#!! !!#??????#!! !#????? | | ????????????????##??### %##???###### ###???? | | ????????????????#!!??## ###***# ## ]]#???? | | ???????!! ##===#!!!##a % ##***# ## ]]##??? | | ??????? ^ % a !! #??? | | ??????? ^ @ H !!##??? | | ??????? ^ !!#???? | | ???????== ##!!!#!!h##a a##!!!# ## ==#???? | | ????????????#!??#!!!?## ###!!!# ## ==#???? | | ????????????????###???# #?#?######## ###???? | | ??????????????????????! *????????# /#????? | | ??????????????????????! *a???????# /#????? | | ?????????????????????!! **#??????# /#????? | | ?????????????????????## ###??????### ##????? | | ?????????????????????? ????????# /#????? | | ?????????????????????? ????????# /#????? | | ?????????????????????? ???????### ##????? | | ??????????????????????# ##????#???## ###???? | | ??????????????????????# ###///#//## ""###?? | | ??????????????????????? c """""#? | | ??????????????????????? ""##"#? | | ????????????????????????!! #///#//##"""""#???? | | ????????????????????????????#???###?#"""""#???? | | ????????????????????????????????????##"####???? | | ?????????????????????????????????????#"???????? | | ?????????????????????????????????????#"???????? | | ??????????????????????????????????????????????? | | ??????????????????????????????????????????????? | | ??????????????????????????????????????????????? | | ??????????????????????????????????????????????? | +----------------------------------------------------+ Best States ------------- Heat Dissipation 44 Energy Generation 14 Energy Capacity 160 Matter Stores 300 Matter Capacity 300 Sight Range 16 Robot Scan Range 14 Terrain Scan Density 10 Jamming Range 12 Evasion (%) 64 Offensive Hacking 10 Authchip Count 1 Item Schematics ----------------- None Robot Schematics ------------------ None Fabricated ------------ Nothing Alien Tech Used ----------------- None Achievements -------------- None Challenges ------------ None Game ------ Seed SignalSwarmMapper Manual? 0 Play Time 00:25:17 Cumulative 38.2 hours Start 2023.06.07 @ 21:16:10 End 2023.06.09 @ 10:55:44 Sessions 3 Manual Loads 0 Difficulty Rogue Special Mode None Game No. 97 Rogue 96 Adventurer 0 Explorer 1 Win Type - Total 0 Types 0/0/0/0/0/0/0/0/0 Lore% 21 Gallery% 39 Achievement% 28 Wizard Run 0 Options --------- ASCII 1 Keyboard 1 Movement Vi Keybinds 0 Fullscreen 1 Font 24/Proggy Map View 76x56 Tactical HUD 1 Map Filters NONE Filters NONE Steam 1 RUN: 81cd1be0-2c31-4900-90c7-b8235df131f1